Workbook

Sheet Sheet1
A1: 插接窑耐火材料供货清单
A2: 序号 | B2: 设备 位号 | C2: 设 备 名 称 | D2: 规格或型号 | E2: 单位 | F2: 数量 | G2: 功率（kw） | I2: 重量(t) | K2: 价格（万元） | M2: 备 注
G3: 单 | H3: 总 | I3: 单 | J3: 总 | K3: 单 | L3: 总
B4: 十 | C4: 耐火材料 | E4: 项 | F4: 1
B5: 10.01 | C5: φ2.0×40m+φ2.5×28m插接窑
B6: 10.01-1 | C6: φ2.0×40m烘干窑筒体砌筑材料
C7: 钢纤维耐磨浇注料 | D7: 高铝质，Al2O3≥70% | E7: 项 | F7: 1 | I7: 30.510 | J7: =I7*F7 -> 30.510
C8: Ⅱ级高铝砖 t=200mm | D8: 高铝质，Al2O3≥65% | E8: 项 | F8: 1 | I8: 75.350 | J8: 75.350
C9: Ⅱ级高铝锁缝砖一 t=200mm | D9: 高铝质，Al2O3≥65% | E9: 项 | F9: 1 | I9: 3.160 | J9: 3.160
C10: Ⅱ级高铝锁缝砖二 t=200mm | D10: 高铝质，Al2O3≥65% | E10: 项 | F10: 1 | I10: 2.377 | J10: 2.377
C11: 耐火胶泥 | D11: 高铝质，Al2O3≥65% | E11: 项 | F11: 1 | I11: 2.567 | J11: 2.567
C12: 刚玉钢纤维低水泥浇注料 | D12: 高铝质，Al2O3≥80% | E12: 项 | F12: 1 | I12: 9.330 | J12: 9.330
C13: 锚固件 | D13: 0Cr25Ni20 | E13: 项 | F13: 1 | I13: 0.653 | J13: 0.653
C14: 锁缝钢板 | D14: Q235B | E14: 项 | F14: 1 | I14: 0.242 | J14: 0.242
D15: 小计 | J15: =SUM(J7:J14) -> 124.189
B16: 10.01-2 | C16: 中部连接罩体砌筑材料
C17: 硅酸钙绝热板 | D17: t=30mm | E17: 项 | F17: 1 | I17: 0.125 | J17: =I17*F17 -> 0.125
C18: 莫来石耐磨自流浇注料 | D18: Al2O3≥55% | E18: 项 | F18: 1 | I18: 4.368 | J18: 4.368
C19: 锚固件 | D19: 1Cr18Ni9Ti | E19: 项 | F19: 1 | I19: 0.036 | J19: 0.036
D20: 小计 | J20: =SUM(J17:J19) -> 4.529
B21: 10.01-3 | C21: φ2.5×28m煅烧窑筒体砌筑材料
C22: 磷酸盐高铝复合砖 | D22: t=250mm，高铝质，Al2O3≥75% | E22: 项 | F22: 1 | I22: 105.050 | J22: =I22*F22 -> 105.050
C23: 磷酸盐高铝砖 | D23: t=250mm，高铝质，Al2O3≥75% | E23: 项 | F23: 1 | I23: 11.629 | J23: 11.629
C24: 磷酸盐高铝锁缝砖一 | D24: t=250mm，高铝质，Al2O3≥75% | E24: 项 | F24: 1 | I24: 3.923 | J24: 3.923
C25: 磷酸盐高铝锁缝砖二 | D25: t=250mm，高铝质，Al2O3≥75% | E25: 项 | F25: 1 | I25: 2.923 | J25: 2.923
C26: 耐火胶泥 | D26: 高铝质，Al2O3≥65% | E26: 项 | F26: 1 | I26: 3.717 | J26: 3.717
C27: 窑口专用浇注料 | D27: 刚玉质，Al2O3≥80% | E27: 项 | F27: 1 | I27: 6.187 | J27: 6.187
C28: 锁缝钢板 | D28: Q235B | E28: 项 | F28: 1 | I28: 0.428 | J28: 0.428
C29: 锚固件 | D29: 0Cr25Ni20 | E29: 项 | F29: 1 | I29: 0.097 | J29: 0.097
D30: 小计 | J30: =SUM(J22:J29) -> 133.954
B31: 10.01-4 | C31: 窑头罩砌筑材料
C32: 硅酸钙绝热板 | D32: t=30mm | E32: 项 | F32: 1 | I32: 0.310 | J32: =I32*F32 -> 0.310
C33: 莫来石耐磨自流浇注料 | D33: Al2O3≥55% | E33: 项 | F33: 1 | I33: 15.624 | J33: 15.624
C34: 锚固件 | D34: 1Cr18Ni9Ti | E34: 项 | F34: 1 | I34: 0.066 | J34: 0.066
D35: 小计 | J35: =SUM(J32:J34) -> 16.000
D36: 10.01合计 | J36: =J35+J30+J20+J15 -> 278.672
B37: 10.02 | C37: φ2.0×40m+φ2.4×28m插接窑
B38: 10.02-1 | C38: φ2.0×40m烘干窑筒体砌筑材料
C39: 钢纤维耐磨浇注料 | D39: 高铝质，Al2O3≥70% | E39: 项 | F39: 1 | I39: 30.510 | J39: =I39*F39 -> 30.510
C40: Ⅱ级高铝砖 t=200mm | D40: 高铝质，Al2O3≥65% | E40: 项 | F40: 1 | I40: 75.350 | J40: 75.350
C41: Ⅱ级高铝锁缝砖一 t=200mm | D41: 高铝质，Al2O3≥65% | E41: 项 | F41: 1 | I41: 3.160 | J41: 3.160
C42: Ⅱ级高铝锁缝砖二 t=200mm | D42: 高铝质，Al2O3≥65% | E42: 项 | F42: 1 | I42: 2.377 | J42: 2.377
C43: 耐火胶泥 | D43: 高铝质，Al2O3≥65% | E43: 项 | F43: 1 | I43: 2.567 | J43: 2.567
C44: 刚玉钢纤维低水泥浇注料 | D44: 高铝质，Al2O3≥80% | E44: 项 | F44: 1 | I44: 9.330 | J44: 9.330
C45: 锚固件 | D45: 0Cr25Ni20 | E45: 项 | F45: 1 | I45: 0.653 | J45: 0.653
C46: 锁缝钢板 | D46: Q235B | E46: 项 | F46: 1 | I46: 0.242 | J46: 0.242
D47: 小计 | J47: =SUM(J39:J46) -> 124.189
B48: 10.02-2 | C48: 中部连接罩体砌筑材料
C49: 硅酸钙绝热板 | D49: t=30mm | E49: 项 | F49: 1 | I49: 0.125 | J49: =I49*F49 -> 0.125
C50: 莫来石耐磨自流浇注料 | D50: Al2O3≥55% | E50: 项 | F50: 1 | I50: 4.368 | J50: 4.368
C51: 锚固件 | D51: 1Cr18Ni9Ti | E51: 项 | F51: 1 | I51: 0.036 | J51: 0.036
D52: 小计 | J52: =SUM(J49:J51) -> 4.529
B53: 10.02-3 | C53: φ2.4×28m煅烧窑筒体砌筑材料
C54: 磷酸盐高铝复合砖 | D54: t=250mm，高铝质，Al2O3≥75% | E54: 项 | F54: 1 | I54: 96.816 | J54: =I54*F54 -> 96.816
C55: 磷酸盐高铝砖 | D55: t=250mm，高铝质，Al2O3≥75% | E55: 项 | F55: 1 | I55: 11.164 | J55: 11.164
C56: 磷酸盐高铝锁缝砖一 | D56: t=250mm，高铝质，Al2O3≥75% | E56: 项 | F56: 1 | I56: 3.766 | J56: 3.766
C57: 磷酸盐高铝锁缝砖二 | D57: t=250mm，高铝质，Al2O3≥75% | E57: 项 | F57: 1 | I57: 2.806 | J57: 2.806
C58: 耐火胶泥 | D58: 高铝质，Al2O3≥65% | E58: 项 | F58: 1 | I58: 3.568 | J58: 3.568
C59: 窑口专用浇注料 | D59: 刚玉质，Al2O3≥80% | E59: 项 | F59: 1 | I59: 5.940 | J59: 5.940
C60: 锁缝钢板 | D60: Q235B | E60: 项 | F60: 1 | I60: 0.411 | J60: 0.411
C61: 锚固件 | D61: 0Cr25Ni20 | E61: 项 | F61: 1 | I61: 0.093 | J61: 0.093
D62: 小计 | J62: =SUM(J54:J61) -> 124.564
B63: 10.02-4 | C63: 窑头罩砌筑材料
C64: 硅酸钙绝热板 | D64: t=30mm | E64: 项 | F64: 1 | I64: 0.310 | J64: =I64*F64 -> 0.310
C65: 莫来石耐磨自流浇注料 | D65: Al2O3≥55% | E65: 项 | F65: 1 | I65: 15.624 | J65: 15.624
C66: 锚固件 | D66: 1Cr18Ni9Ti | E66: 项 | F66: 1 | I66: 0.066 | J66: 0.066
D67: 小计 | J67: =SUM(J64:J66) -> 16.000
D68: 10.02合计 | J68: =J67+J62+J52+J47 -> 269.282
B69: 10.03 | C69: φ3.0×30m冷却机
B70: 10.03-1 | C70: φ3.0×30m冷却机筒体砌筑材料
C71: Ⅱ级高铝砖 t=200mm | D71: 高铝质，Al2O3≥65% | E71: 项 | F71: 1 | I71: 24.550 | J71: =I71*F71 -> 24.550
C72: Ⅱ级高铝锁缝砖 t=200mm | D72: 高铝质，Al2O3≥65% | E72: 项 | F72: 1 | I72: 1.320 | J72: 1.320
C73: 耐火胶泥 | D73: 高铝质，Al2O3≥65% | E73: 项 | F73: 1 | I73: 0.640 | J73: 0.640
C74: 锁缝钢板 | D74: Q235B | E74: 项 | F74: 1 | I74: 0.060 | J74: 0.060
C75: 锚固件 | D75: 1Cr18Ni9Ti | E75: 项 | F75: 1 | I75: 0.200 | J75: 0.200
C76: 刚玉钢纤维低水泥浇注料 | D76: 高铝质，Al2O3≥80% | E76: 项 | F76: 1 | I76: 22.160 | J76: 22.160
D77: 小计 | J77: =SUM(J71:J76) -> 48.930
B78: 10.03-2 | C78: φ3.0×30m冷却机进料罩砌筑材料
C79: 刚玉钢纤维低水泥浇注料 | D79: Al2O3≥80% | E79: 项 | F79: 1 | I79: 6.720 | J79: =I79*F79 -> 6.720
C80: 莫来石耐磨自流浇注料 | D80: Al2O3≥55% | E80: 项 | F80: 1 | I80: 1.073 | J80: 1.073
C81: 锚固件 | D81: 1Cr18Ni9Ti | E81: 项 | F81: 1 | I81: 0.030 | J81: 0.030
D82: 小计 | J82: =SUM(J79:J81) -> 7.823
D83: 10.03合计 | J83: =J82+J77 -> 56.753
B84: 10.04 | C84: 窑尾烟室砌筑材料
B85: 10.04-1 | C85: 硅酸钙绝热板 | D85: t=30mm | E85: 项 | F85: 2 | I85: 1.200 | J85: =I85*F85 -> 2.400
B86: 10.04-2 | C86: 莫来石耐磨自流浇注料 | D86: Al2O3≥55% | E86: 项 | F86: 2 | I86: 50.200 | J86: 100.400
B87: 10.04-3 | C87: 锚固件 | D87: 1Cr18Ni9Ti | E87: 项 | F87: 2 | I87: 0.380 | J87: 0.760
D88: 10.04合计 | J88: =SUM(J85:J87) -> 103.560
B89: 10.05 | C89: 回转窑下料溜槽
B90: 10.05-1 | C90: 刚玉钢纤维低水泥浇注料 | D90: Al2O3≥80% | E90: 项 | F90: 1 | I90: 16.800 | J90: =I90*F90 -> 16.800
B91: 10.05-2 | C91: 锚固件 | D91: 1Cr18Ni9Ti | E91: 项 | F91: 1 | I91: 0.120 | J91: =I91*F91 -> 0.120
D92: 10.05合计 | J92: =SUM(J90:J91) -> 16.920
D94: 耐火材料总计 | J94: =J83+J68+J36+J88+J92 -> 725.187
